[Event "Titled Tuesday Blitz July 4 Early 2023"]
[White "Mamedov, Rauf"]
[Black "Svane, Rasmus"]
[WhiteFideId "13401653"]
[BlackFideId "4657101"]
[WhiteElo "3044"]
[BlackElo "2927"]
[Result "1-0"]
[Round "6"]
[TimeControl "180+2"]
[Date "2023.07.04"]
[WhiteClock "0:00:06"]
[BlackClock "0:00:04"]
[Board "2"]

1. e4 {[%clk 0:03:00]}  c6 {[%clk 0:03:00]} 2. Nf3 {[%clk 0:03:00]}  d5 {[%clk 0:03:00]} 3. e5 {[%clk 0:03:00]}  c5 {[%clk 0:02:59]} 4. c4 {[%clk 0:03:00]}  dxc4 {[%clk 0:02:44]} 5. Na3 {[%clk 0:02:55]}  Nc6 {[%clk 0:02:43]} 6. Nxc4 {[%clk 0:02:55]}  Bf5 {[%clk 0:02:40]} 7. Ne3 {[%clk 0:02:27]}  Bd7 {[%clk 0:02:31]} 8. Bd3 {[%clk 0:02:09]}  g6 {[%clk 0:02:26]} 9. Qb3 {[%clk 0:02:00]}  Rb8 {[%clk 0:02:10]} 10. Qc3 {[%clk 0:01:40]}  Bg7 {[%clk 0:01:50]} 11. O-O {[%clk 0:01:17]}  Nh6 {[%clk 0:01:36]} 12. Qxc5 {[%clk 0:01:16]}  Rc8 {[%clk 0:01:36]} 13. Qa3 {[%clk 0:01:15]}  O-O {[%clk 0:01:33]} 14. Be4 {[%clk 0:01:14]}  Nxe5 {[%clk 0:01:26]} 15. Bxb7 {[%clk 0:01:14]}  Rb8 {[%clk 0:01:22]} 16. Be4 {[%clk 0:01:03]}  Bc6 {[%clk 0:01:17]} 17. Bxc6 {[%clk 0:01:01]}  Nxc6 {[%clk 0:01:18]} 18. d3 {[%clk 0:00:59]}  Qb6 {[%clk 0:01:15]} 19. Nc4 {[%clk 0:00:55]}  Qb4 {[%clk 0:01:14]} 20. Qa6 {[%clk 0:00:46]}  Rfc8 {[%clk 0:01:03]} 21. Bf4 {[%clk 0:00:46]}  Qb5 {[%clk 0:00:58]} 22. Qxb5 {[%clk 0:00:45]}  Rxb5 {[%clk 0:00:59]} 23. Rac1 {[%clk 0:00:45]}  Nb4 {[%clk 0:00:45]} 24. Nd6 {[%clk 0:00:37]}  Rxc1 {[%clk 0:00:30]} 25. Rxc1 {[%clk 0:00:37]}  Rb8 {[%clk 0:00:24]} 26. Nxf7 {[%clk 0:00:30]}  Nxd3 {[%clk 0:00:24]} 27. Nxh6+ {[%clk 0:00:26]}  Bxh6 {[%clk 0:00:24]} 28. Bxb8 {[%clk 0:00:27]}  Nxc1 {[%clk 0:00:24]} 29. a4 {[%clk 0:00:24]}  a6 {[%clk 0:00:22]} 30. b4 {[%clk 0:00:23]}  Kf7 {[%clk 0:00:20]} 31. Nd4 {[%clk 0:00:21]}  Ke8 {[%clk 0:00:19]} 32. Kf1 {[%clk 0:00:20]}  Kd7 {[%clk 0:00:19]} 33. b5 {[%clk 0:00:17]}  axb5 {[%clk 0:00:19]} 34. Nxb5 {[%clk 0:00:18]}  Nd3 {[%clk 0:00:18]} 35. Ba7 {[%clk 0:00:17]}  Bf4 {[%clk 0:00:15]} 36. g3 {[%clk 0:00:17]}  Be5 {[%clk 0:00:15]} 37. Be3 {[%clk 0:00:17]}  Kc6 {[%clk 0:00:14]} 38. Na3 {[%clk 0:00:15]}  Nb2 {[%clk 0:00:12]} 39. a5 {[%clk 0:00:14]}  Kb7 {[%clk 0:00:12]} 40. Ke2 {[%clk 0:00:09]}  Bc7 {[%clk 0:00:10]} 41. Bd2 {[%clk 0:00:08]}  Ka6 {[%clk 0:00:11]} 42. Bg5 {[%clk 0:00:06]}  e6 {[%clk 0:00:10]} 43. Nc2 {[%clk 0:00:06]}  Kxa5 {[%clk 0:00:09]} 44. Nd4 {[%clk 0:00:06]}  e5 {[%clk 0:00:09]} 45. Ne6 {[%clk 0:00:07]}  Bd6 {[%clk 0:00:09]} 46. Bh6 {[%clk 0:00:07]}  Be7 {[%clk 0:00:08]} 47. Bf8 {[%clk 0:00:08]}  Bf6 {[%clk 0:00:08]} 48. Bc5 {[%clk 0:00:07]}  g5 {[%clk 0:00:06]} 49. Kf3 {[%clk 0:00:06]}  h5 {[%clk 0:00:06]} 50. Ke4 {[%clk 0:00:05]}  Kb5 {[%clk 0:00:07]} 51. Be3 {[%clk 0:00:06]}  Nc4 {[%clk 0:00:07]} 52. Bxg5 {[%clk 0:00:05]}  Bh8 {[%clk 0:00:06]} 53. Kf5 {[%clk 0:00:06]}  Nd6+ {[%clk 0:00:06]} 54. Kg6 {[%clk 0:00:06]}  Ne4 {[%clk 0:00:05]} 55. Be3 {[%clk 0:00:05]}  h4 {[%clk 0:00:04]} 56. gxh4 {[%clk 0:00:04]}  Kc4 {[%clk 0:00:05]} 57. Ng5 {[%clk 0:00:04]}  Nd6 {[%clk 0:00:03]} 58. Nf7 {[%clk 0:00:05]}  Nxf7 {[%clk 0:00:02]} 59. Kxf7 {[%clk 0:00:06]}  e4 {[%clk 0:00:03]} 60. h5 {[%clk 0:00:06]}  Kd3 {[%clk 0:00:03]} 61. h6 {[%clk 0:00:06]}  Bc3 {[%clk 0:00:03]} 62. h7 {[%clk 0:00:07]}  Ke2 {[%clk 0:00:03]} 63. Kg8 {[%clk 0:00:06]}  Kf3 {[%clk 0:00:04]} 1-0


[Site "https://www.chess.com"]

[Event "Titled Tuesday Blitz July 4 Early 2023"]
[White "Martinez Alcantara, Jose Eduardo"]
[Black "Durarbayli, Vasif"]
[WhiteFideId "3805662"]
[BlackFideId "13402935"]
[WhiteElo "3036"]
[BlackElo "2923"]
[Result "1-0"]
[Round "6"]
[TimeControl "180+2"]
[Date "2023.07.04"]
[WhiteClock "0:00:47"]
[BlackClock "0:00:03"]
[Board "3"]

1. e4 {[%clk 0:03:00]}  c5 {[%clk 0:03:00]} 2. Nf3 {[%clk 0:03:00]}  d6 {[%clk 0:03:00]} 3. c3 {[%clk 0:03:00]}  Nf6 {[%clk 0:03:00]} 4. h3 {[%clk 0:03:00]}  Nc6 {[%clk 0:02:59]} 5. Bd3 {[%clk 0:03:01]}  g6 {[%clk 0:02:55]} 6. Bc2 {[%clk 0:03:01]}  e5 {[%clk 0:02:55]} 7. O-O {[%clk 0:03:01]}  Bg7 {[%clk 0:02:55]} 8. d4 {[%clk 0:03:02]}  cxd4 {[%clk 0:02:56]} 9. cxd4 {[%clk 0:03:03]}  exd4 {[%clk 0:02:56]} 10. Nxd4 {[%clk 0:03:03]}  O-O {[%clk 0:02:56]} 11. Nxc6 {[%clk 0:03:04]}  bxc6 {[%clk 0:02:57]} 12. Nc3 {[%clk 0:03:05]}  Re8 {[%clk 0:02:53]} 13. Re1 {[%clk 0:02:52]}  Rb8 {[%clk 0:02:50]} 14. Rb1 {[%clk 0:02:49]}  Nh5 {[%clk 0:02:30]} 15. Be3 {[%clk 0:02:44]}  a5 {[%clk 0:02:02]} 16. Ba4 {[%clk 0:02:34]}  Rxb2 {[%clk 0:01:10]} 17. Rxb2 {[%clk 0:02:29]}  Bxc3 {[%clk 0:01:10]} 18. Rd2 {[%clk 0:01:44]}  Bxd2 {[%clk 0:01:10]} 19. Qxd2 {[%clk 0:01:45]}  Rxe4 {[%clk 0:01:08]} 20. Bxc6 {[%clk 0:01:43]}  Re5 {[%clk 0:01:06]} 21. Rd1 {[%clk 0:01:41]}  Re6 {[%clk 0:00:21]} 22. Bd5 {[%clk 0:01:33]}  Re5 {[%clk 0:00:18]} 23. Bf3 {[%clk 0:01:30]}  Be6 {[%clk 0:00:10]} 24. a4 {[%clk 0:01:16]}  d5 {[%clk 0:00:09]} 25. Rb1 {[%clk 0:01:11]}  Rf5 {[%clk 0:00:05]} 26. Bg4 {[%clk 0:01:08]}  Re5 {[%clk 0:00:06]} 27. Bd4 {[%clk 0:00:59]}  Re4 {[%clk 0:00:03]} 28. Bxh5 {[%clk 0:00:55]}  gxh5 {[%clk 0:00:04]} 29. Qg5+ {[%clk 0:00:47]}  Qxg5 {[%clk 0:00:02]} 30. Rb8+ {[%clk 0:00:46]}  Bc8 {[%clk 0:00:02]} 31. Rxc8+ {[%clk 0:00:47]}  Re8 {[%clk 0:00:03]} 32. Rxe8# {[%clk 0:00:47]} 1-0


[Site "https://www.chess.com"]

[Event "Titled Tuesday Blitz July 4 Early 2023"]
[White "Goltsev, Dmitry"]
[Black "Pranav, V"]
[WhiteFideId "24176710"]
[BlackFideId "25060783"]
[WhiteElo "2827"]
[BlackElo "3007"]
[Result "0-1"]
[Round "6"]
[TimeControl "180+2"]
[Date "2023.07.04"]
[WhiteClock "0:01:38"]
[BlackClock "0:01:09"]
[Board "7"]

1. e4 {[%clk 0:03:00]}  c5 {[%clk 0:02:59]} 2. Nf3 {[%clk 0:02:59]}  Nc6 {[%clk 0:02:59]} 3. d4 {[%clk 0:03:00]}  cxd4 {[%clk 0:02:59]} 4. Nxd4 {[%clk 0:03:01]}  Nf6 {[%clk 0:02:59]} 5. Nc3 {[%clk 0:03:01]}  e6 {[%clk 0:03:00]} 6. Be2 {[%clk 0:03:01]}  a6 {[%clk 0:02:58]} 7. O-O {[%clk 0:03:01]}  Qc7 {[%clk 0:02:58]} 8. Be3 {[%clk 0:03:01]}  Be7 {[%clk 0:02:58]} 9. Qd2 {[%clk 0:03:01]}  O-O {[%clk 0:02:58]} 10. f3 {[%clk 0:03:01]}  b5 {[%clk 0:02:56]} 11. a3 {[%clk 0:03:00]}  Bb7 {[%clk 0:02:55]} 12. Nb3 {[%clk 0:03:00]}  Rad8 {[%clk 0:02:53]} 13. Rfd1 {[%clk 0:02:59]}  d5 {[%clk 0:02:51]} 14. exd5 {[%clk 0:03:00]}  Nxd5 {[%clk 0:02:52]} 15. Nxd5 {[%clk 0:03:00]}  Rxd5 {[%clk 0:02:52]} 16. Qe1 {[%clk 0:03:00]}  Bd6 {[%clk 0:02:42]} 17. g3 {[%clk 0:02:50]}  Ne7 {[%clk 0:02:41]} 18. c3 {[%clk 0:02:47]}  Nf5 {[%clk 0:02:38]} 19. Bf2 {[%clk 0:02:47]}  h5 {[%clk 0:02:36]} 20. Rxd5 {[%clk 0:02:37]}  Bxd5 {[%clk 0:02:34]} 21. Nd2 {[%clk 0:02:37]}  h4 {[%clk 0:02:30]} 22. Nf1 {[%clk 0:02:31]}  hxg3 {[%clk 0:02:27]} 23. hxg3 {[%clk 0:02:30]}  f6 {[%clk 0:02:19]} 24. g4 {[%clk 0:02:26]}  Ne7 {[%clk 0:02:14]} 25. Rd1 {[%clk 0:02:26]}  Kf7 {[%clk 0:02:09]} 26. Bg3 {[%clk 0:02:27]}  Rh8 {[%clk 0:02:07]} 27. Bxd6 {[%clk 0:02:26]}  Qxd6 {[%clk 0:02:08]} 28. Qg3 {[%clk 0:02:26]}  Qb6+ {[%clk 0:02:02]} 29. Qf2 {[%clk 0:02:20]}  Qc7 {[%clk 0:01:53]} 30. Qg3 {[%clk 0:02:18]}  Qxg3+ {[%clk 0:01:40]} 31. Nxg3 {[%clk 0:02:19]}  Ng6 {[%clk 0:01:41]} 32. Kf2 {[%clk 0:02:14]}  Nf4 {[%clk 0:01:32]} 33. Rh1 {[%clk 0:02:11]}  Rd8 {[%clk 0:01:31]} 34. Rd1 {[%clk 0:02:11]}  g5 {[%clk 0:01:24]} 35. c4 {[%clk 0:01:59]}  bxc4 {[%clk 0:01:24]} 36. Bxc4 {[%clk 0:01:58]}  Rb8 {[%clk 0:01:24]} 37. Bxa6 {[%clk 0:01:53]}  Rxb2+ {[%clk 0:01:24]} 38. Ne2 {[%clk 0:01:53]}  Rb3 {[%clk 0:01:09]} 39. Nxf4 {[%clk 0:01:50]}  Rxf3+ {[%clk 0:01:09]} 40. Ke2 {[%clk 0:01:51]}  Rxf4 {[%clk 0:01:10]} 41. Bb5 {[%clk 0:01:38]}  Bf3+ {[%clk 0:01:09]} 0-1


[Site "https://www.chess.com"]

[Event "Titled Tuesday Blitz July 4 Early 2023"]
[White "Gavrilov, Maxim"]
[Black "Korobov, Anton"]
[WhiteFideId "24271454"]
[BlackFideId "14105730"]
[WhiteElo "2580"]
[BlackElo "2983"]
[Result "0-1"]
[Round "6"]
[TimeControl "180+2"]
[Date "2023.07.04"]
[WhiteClock "0:00:03"]
[BlackClock "0:01:22"]
[Board "8"]

1. d4 {[%clk 0:03:00]}  Nf6 {[%clk 0:02:59]} 2. c4 {[%clk 0:03:01]}  e6 {[%clk 0:03:00]} 3. Nc3 {[%clk 0:03:00]}  Bb4 {[%clk 0:03:00]} 4. Nf3 {[%clk 0:02:59]}  b6 {[%clk 0:02:57]} 5. e3 {[%clk 0:02:55]}  Bb7 {[%clk 0:02:56]} 6. Bd3 {[%clk 0:02:56]}  O-O {[%clk 0:02:56]} 7. O-O {[%clk 0:02:56]}  d5 {[%clk 0:02:57]} 8. cxd5 {[%clk 0:02:55]}  exd5 {[%clk 0:02:57]} 9. Ne5 {[%clk 0:02:56]}  Bd6 {[%clk 0:02:54]} 10. f4 {[%clk 0:02:49]}  c5 {[%clk 0:02:54]} 11. Bd2 {[%clk 0:02:48]}  Nc6 {[%clk 0:02:54]} 12. Ne2 {[%clk 0:02:39]}  Ne4 {[%clk 0:02:49]} 13. Be1 {[%clk 0:02:24]}  cxd4 {[%clk 0:02:41]} 14. exd4 {[%clk 0:02:22]}  Ne7 {[%clk 0:02:37]} 15. Bh4 {[%clk 0:02:11]}  f6 {[%clk 0:02:36]} 16. Ng4 {[%clk 0:02:00]}  Nf5 {[%clk 0:02:34]} 17. Bf2 {[%clk 0:01:49]}  Re8 {[%clk 0:02:33]} 18. Ng3 {[%clk 0:01:35]}  Qd7 {[%clk 0:01:58]} 19. Nxf5 {[%clk 0:01:17]}  Qxf5 {[%clk 0:01:59]} 20. g3 {[%clk 0:01:08]}  Qg6 {[%clk 0:01:48]} 21. Kh1 {[%clk 0:00:30]}  Rac8 {[%clk 0:01:46]} 22. Qf3 {[%clk 0:00:26]}  Rc4 {[%clk 0:01:35]} 23. Rad1 {[%clk 0:00:24]}  h5 {[%clk 0:01:35]} 24. Ne3 {[%clk 0:00:20]}  Rxd4 {[%clk 0:01:35]} 25. Nf5 {[%clk 0:00:14]}  Rxd3 {[%clk 0:01:34]} 26. Qxd3 {[%clk 0:00:09]}  Qxf5 {[%clk 0:01:34]} 27. Bd4 {[%clk 0:00:09]}  Kf7 {[%clk 0:01:24]} 28. Kg1 {[%clk 0:00:08]}  h4 {[%clk 0:01:24]} 29. Qf3 {[%clk 0:00:07]}  hxg3 {[%clk 0:01:24]} 30. hxg3 {[%clk 0:00:07]}  Qh3 {[%clk 0:01:22]} 31. Rd3 {[%clk 0:00:05]}  Rh8 {[%clk 0:01:22]} 32. Qg2 {[%clk 0:00:05]}  Qxg2+ {[%clk 0:01:21]} 33. Kxg2 {[%clk 0:00:03]}  Ba6 {[%clk 0:01:22]} 0-1


[Site "https://www.chess.com"]

[Event "Titled Tuesday Blitz July 4 Early 2023"]
[White "Tristan, Leonardo"]
[Black "Nakamura, Hikaru"]
[WhiteFideId "113816"]
[BlackFideId "2016192"]
[WhiteElo "2783"]
[BlackElo "3159"]
[Result "1-0"]
[Round "6"]
[TimeControl "180+2"]
[Date "2023.07.04"]
[WhiteClock "0:00:06"]
[BlackClock "0:00:08"]
[Board "9"]

1. d4 {[%clk 0:03:00]}  g6 {[%clk 0:02:57]} 2. e4 {[%clk 0:03:00]}  Bg7 {[%clk 0:02:57]} 3. Nc3 {[%clk 0:03:01]}  a6 {[%clk 0:02:57]} 4. f4 {[%clk 0:03:01]}  c6 {[%clk 0:02:55]} 5. Nf3 {[%clk 0:02:56]}  d5 {[%clk 0:02:56]} 6. e5 {[%clk 0:02:57]}  Bg4 {[%clk 0:02:56]} 7. h3 {[%clk 0:02:57]}  Bxf3 {[%clk 0:02:56]} 8. Qxf3 {[%clk 0:02:57]}  e6 {[%clk 0:02:56]} 9. g4 {[%clk 0:02:54]}  h5 {[%clk 0:02:56]} 10. Be3 {[%clk 0:02:49]}  Qh4+ {[%clk 0:02:54]} 11. Bf2 {[%clk 0:02:27]}  hxg4 {[%clk 0:02:47]} 12. Bxh4 {[%clk 0:02:04]}  gxf3 {[%clk 0:02:46]} 13. Bg3 {[%clk 0:02:04]}  Ne7 {[%clk 0:02:43]} 14. Kf2 {[%clk 0:01:56]}  Nf5 {[%clk 0:02:41]} 15. Rd1 {[%clk 0:01:56]}  c5 {[%clk 0:02:28]} 16. dxc5 {[%clk 0:01:55]}  g5 {[%clk 0:02:09]} 17. fxg5 {[%clk 0:01:42]}  Nd7 {[%clk 0:01:53]} 18. Kxf3 {[%clk 0:01:01]}  Nxg3 {[%clk 0:01:48]} 19. Kxg3 {[%clk 0:01:01]}  Bxe5+ {[%clk 0:01:49]} 20. Kg4 {[%clk 0:00:49]}  Bxc3 {[%clk 0:01:34]} 21. bxc3 {[%clk 0:00:49]}  Rc8 {[%clk 0:01:35]} 22. c4 {[%clk 0:00:48]}  dxc4 {[%clk 0:01:35]} 23. Bg2 {[%clk 0:00:44]}  Nxc5 {[%clk 0:01:23]} 24. h4 {[%clk 0:00:40]}  Ke7 {[%clk 0:01:22]} 25. a4 {[%clk 0:00:37]}  b6 {[%clk 0:01:16]} 26. Rb1 {[%clk 0:00:30]}  Nxa4 {[%clk 0:00:28]} 27. Bb7 {[%clk 0:00:29]}  Rcd8 {[%clk 0:00:28]} 28. Bxa6 {[%clk 0:00:30]}  Rd4+ {[%clk 0:00:28]} 29. Kg3 {[%clk 0:00:30]}  f6 {[%clk 0:00:21]} 30. gxf6+ {[%clk 0:00:27]}  Kxf6 {[%clk 0:00:22]} 31. Rb4 {[%clk 0:00:24]}  Nc5 {[%clk 0:00:19]} 32. Rxb6 {[%clk 0:00:12]}  Rg8+ {[%clk 0:00:14]} 33. Kf3 {[%clk 0:00:12]}  Kf5 {[%clk 0:00:15]} 34. Bb7 {[%clk 0:00:06]}  Rf4+ {[%clk 0:00:14]} 35. Ke3 {[%clk 0:00:06]}  Rg3+ {[%clk 0:00:15]} 36. Kd2 {[%clk 0:00:07]}  c3+ {[%clk 0:00:16]} 37. Kc1 {[%clk 0:00:07]}  Ra4 {[%clk 0:00:15]} 38. Bc6 {[%clk 0:00:05]}  Ra2 {[%clk 0:00:12]} 39. Rb5 {[%clk 0:00:05]}  Kf6 {[%clk 0:00:12]} 40. Kb1 {[%clk 0:00:04]}  Ra3 {[%clk 0:00:05]} 41. Rxc5 {[%clk 0:00:03]}  Rg7 {[%clk 0:00:06]} 42. Rf1+ {[%clk 0:00:02]}  Ke7 {[%clk 0:00:07]} 43. Bb5 {[%clk 0:00:02]}  Kd6 {[%clk 0:00:06]} 44. Rc6+ {[%clk 0:00:03]}  Kd5 {[%clk 0:00:07]} 45. Rd1+ {[%clk 0:00:03]}  Ke5 {[%clk 0:00:08]} 46. Re1+ {[%clk 0:00:04]}  Kd5 {[%clk 0:00:08]} 47. Rd1+ {[%clk 0:00:04]}  Ke5 {[%clk 0:00:08]} 48. Rc5+ {[%clk 0:00:04]}  Kf6 {[%clk 0:00:08]} 49. Rf1+ {[%clk 0:00:05]}  Kg6 {[%clk 0:00:09]} 50. Rg5+ {[%clk 0:00:05]}  Kh6 {[%clk 0:00:10]} 51. Rxg7 {[%clk 0:00:06]}  Kxg7 {[%clk 0:00:08]} 52. Bd3 {[%clk 0:00:06]} 1-0


[Site "https://www.chess.com"]

[Event "Titled Tuesday Blitz July 4 Early 2023"]
[White "Gunina, Valentina"]
[Black "Tahbaz, Arash"]
[WhiteFideId "4167570"]
[BlackFideId "12528846"]
[WhiteElo "2753"]
[BlackElo "3034"]
[Result "1/2-1/2"]
[Round "6"]
[TimeControl "180+2"]
[Date "2023.07.04"]
[WhiteClock "0:00:09"]
[BlackClock "0:00:07"]
[Board "12"]

1. d4 {[%clk 0:03:00]}  Nf6 {[%clk 0:02:59]} 2. c4 {[%clk 0:03:00]}  e6 {[%clk 0:02:58]} 3. Nf3 {[%clk 0:02:59]}  d5 {[%clk 0:02:58]} 4. Nc3 {[%clk 0:02:59]}  a6 {[%clk 0:02:55]} 5. cxd5 {[%clk 0:02:58]}  exd5 {[%clk 0:02:56]} 6. Bg5 {[%clk 0:02:56]}  Be6 {[%clk 0:02:57]} 7. e3 {[%clk 0:02:56]}  Bd6 {[%clk 0:02:45]} 8. Bd3 {[%clk 0:02:56]}  Nbd7 {[%clk 0:02:37]} 9. O-O {[%clk 0:02:48]}  O-O {[%clk 0:02:31]} 10. h3 {[%clk 0:02:43]}  c6 {[%clk 0:02:31]} 11. Qd2 {[%clk 0:02:43]}  Re8 {[%clk 0:02:24]} 12. Rfe1 {[%clk 0:02:42]}  Qc7 {[%clk 0:02:11]} 13. Rac1 {[%clk 0:02:40]}  Rad8 {[%clk 0:02:07]} 14. a3 {[%clk 0:02:39]}  Qb8 {[%clk 0:02:07]} 15. b4 {[%clk 0:02:16]}  h6 {[%clk 0:02:07]} 16. Bf4 {[%clk 0:02:16]}  Rc8 {[%clk 0:01:35]} 17. a4 {[%clk 0:02:12]}  Nb6 {[%clk 0:01:10]} 18. a5 {[%clk 0:02:08]}  Nbd7 {[%clk 0:01:11]} 19. Na4 {[%clk 0:02:07]}  Ne4 {[%clk 0:01:10]} 20. Qc2 {[%clk 0:01:41]}  Bxf4 {[%clk 0:01:08]} 21. exf4 {[%clk 0:01:41]}  Qxf4 {[%clk 0:01:07]} 22. Bxe4 {[%clk 0:01:41]}  dxe4 {[%clk 0:01:07]} 23. Rxe4 {[%clk 0:01:41]}  Qd6 {[%clk 0:01:06]} 24. Nc5 {[%clk 0:01:38]}  Nxc5 {[%clk 0:01:06]} 25. bxc5 {[%clk 0:01:38]}  Qc7 {[%clk 0:01:05]} 26. Qd2 {[%clk 0:01:26]}  Bd5 {[%clk 0:01:04]} 27. Rxe8+ {[%clk 0:01:26]}  Rxe8 {[%clk 0:01:05]} 28. Ne5 {[%clk 0:01:26]}  f6 {[%clk 0:01:05]} 29. Nd3 {[%clk 0:01:24]}  Qf7 {[%clk 0:01:01]} 30. Nf4 {[%clk 0:01:22]}  Re4 {[%clk 0:00:51]} 31. f3 {[%clk 0:01:09]}  Re7 {[%clk 0:00:51]} 32. Re1 {[%clk 0:00:59]}  Rd7 {[%clk 0:00:47]} 33. Qe3 {[%clk 0:00:56]}  g5 {[%clk 0:00:36]} 34. Nd3 {[%clk 0:00:46]}  Kg7 {[%clk 0:00:32]} 35. Nf2 {[%clk 0:00:44]}  Rd8 {[%clk 0:00:27]} 36. Nh1 {[%clk 0:00:44]}  Qd7 {[%clk 0:00:25]} 37. Ng3 {[%clk 0:00:41]}  Bf7 {[%clk 0:00:26]} 38. Kh1 {[%clk 0:00:38]}  Re8 {[%clk 0:00:23]} 39. Qf2 {[%clk 0:00:34]}  Rxe1+ {[%clk 0:00:19]} 40. Qxe1 {[%clk 0:00:34]}  h5 {[%clk 0:00:19]} 41. Qe4 {[%clk 0:00:27]}  Bg6 {[%clk 0:00:19]} 42. Qe3 {[%clk 0:00:26]}  h4 {[%clk 0:00:19]} 43. Ne2 {[%clk 0:00:26]}  Kf7 {[%clk 0:00:15]} 44. Kg1 {[%clk 0:00:25]}  Qc7 {[%clk 0:00:15]} 45. Qd2 {[%clk 0:00:25]}  Qe7 {[%clk 0:00:10]} 46. Kf2 {[%clk 0:00:22]}  Bf5 {[%clk 0:00:09]} 47. d5 {[%clk 0:00:20]}  cxd5 {[%clk 0:00:09]} 48. Qxd5+ {[%clk 0:00:20]}  Be6 {[%clk 0:00:10]} 49. Qd4 {[%clk 0:00:18]}  Qc7 {[%clk 0:00:10]} 50. f4 {[%clk 0:00:15]}  Qxa5 {[%clk 0:00:08]} 51. fxg5 {[%clk 0:00:15]}  fxg5 {[%clk 0:00:09]} 52. Qe5 {[%clk 0:00:15]}  Qd8 {[%clk 0:00:09]} 53. Nd4 {[%clk 0:00:13]}  Qf6+ {[%clk 0:00:10]} 54. Qxf6+ {[%clk 0:00:10]}  Kxf6 {[%clk 0:00:11]} 55. c6 {[%clk 0:00:11]}  bxc6 {[%clk 0:00:10]} 56. Nxc6 {[%clk 0:00:11]}  Bd5 {[%clk 0:00:10]} 57. Nb4 {[%clk 0:00:10]}  Bb7 {[%clk 0:00:10]} 58. g3 {[%clk 0:00:10]}  Ke5 {[%clk 0:00:09]} 59. gxh4 {[%clk 0:00:09]}  gxh4 {[%clk 0:00:10]} 60. Ke3 {[%clk 0:00:09]}  a5 {[%clk 0:00:09]} 61. Nd3+ {[%clk 0:00:09]}  Kf5 {[%clk 0:00:09]} 62. Nf2 {[%clk 0:00:08]}  a4 {[%clk 0:00:09]} 63. Kd2 {[%clk 0:00:08]}  Kf4 {[%clk 0:00:09]} 64. Nd3+ {[%clk 0:00:07]}  Kg3 {[%clk 0:00:08]} 65. Ne5 {[%clk 0:00:07]}  Kxh3 {[%clk 0:00:08]} 66. Ng6 {[%clk 0:00:07]}  Bd5 {[%clk 0:00:05]} 67. Nxh4 {[%clk 0:00:07]}  Kxh4 {[%clk 0:00:05]} 68. Kc2 {[%clk 0:00:07]}  a3 {[%clk 0:00:05]} 69. Kb1 {[%clk 0:00:08]}  Be4+ {[%clk 0:00:05]} 70. Ka1 {[%clk 0:00:08]}  Bf5 {[%clk 0:00:06]} 71. Ka2 {[%clk 0:00:09]}  Be6+ {[%clk 0:00:07]} 72. Kxa3 {[%clk 0:00:09]} 1/2-1/2


[Site "https://www.chess.com"]

[Event "Titled Tuesday Blitz July 4 Early 2023"]
[White "Atakhan, Abtin"]
[Black "Kamsky, Gata"]
[WhiteFideId "22502203"]
[BlackFideId "2000024"]
[WhiteElo "2749"]
[BlackElo "3002"]
[Result "1-0"]
[Round "6"]
[TimeControl "180+2"]
[Date "2023.07.04"]
[WhiteClock "0:00:38"]
[BlackClock "0:00:00"]
[Board "13"]

1. Nf3 {[%clk 0:03:00]}  Nf6 {[%clk 0:02:57]} 2. g3 {[%clk 0:03:01]}  g6 {[%clk 0:02:54]} 3. c4 {[%clk 0:03:01]}  Bg7 {[%clk 0:02:48]} 4. Bg2 {[%clk 0:03:02]}  c6 {[%clk 0:02:48]} 5. O-O {[%clk 0:03:00]}  O-O {[%clk 0:02:48]} 6. Nc3 {[%clk 0:02:58]}  d5 {[%clk 0:02:48]} 7. cxd5 {[%clk 0:02:59]}  cxd5 {[%clk 0:02:48]} 8. d4 {[%clk 0:03:00]}  e6 {[%clk 0:02:46]} 9. Bf4 {[%clk 0:02:58]}  Nc6 {[%clk 0:02:46]} 10. Rc1 {[%clk 0:02:52]}  Bd7 {[%clk 0:02:45]} 11. Bd6 {[%clk 0:02:50]}  Re8 {[%clk 0:02:44]} 12. e3 {[%clk 0:02:46]}  Bf8 {[%clk 0:02:30]} 13. Bxf8 {[%clk 0:02:44]}  Rxf8 {[%clk 0:02:30]} 14. Qb3 {[%clk 0:02:42]}  Qb6 {[%clk 0:02:28]} 15. Qa3 {[%clk 0:02:34]}  Qb4 {[%clk 0:02:25]} 16. Qxb4 {[%clk 0:02:26]}  Nxb4 {[%clk 0:02:25]} 17. Ne5 {[%clk 0:02:26]}  Rfc8 {[%clk 0:02:23]} 18. a3 {[%clk 0:02:24]}  Nc6 {[%clk 0:02:22]} 19. Nd3 {[%clk 0:02:25]}  b6 {[%clk 0:02:19]} 20. Rfd1 {[%clk 0:02:02]}  Na5 {[%clk 0:02:09]} 21. Ne5 {[%clk 0:02:01]}  Be8 {[%clk 0:02:07]} 22. h4 {[%clk 0:01:57]}  Nd7 {[%clk 0:01:56]} 23. Nxd7 {[%clk 0:01:36]}  Bxd7 {[%clk 0:01:55]} 24. e4 {[%clk 0:01:37]}  dxe4 {[%clk 0:01:49]} 25. Nxe4 {[%clk 0:01:36]}  Kg7 {[%clk 0:01:41]} 26. Nd6 {[%clk 0:01:21]}  Rxc1 {[%clk 0:01:19]} 27. Rxc1 {[%clk 0:01:21]}  Rd8 {[%clk 0:01:17]} 28. Rc7 {[%clk 0:01:21]}  Be8 {[%clk 0:01:16]} 29. Nxe8+ {[%clk 0:01:10]}  Rxe8 {[%clk 0:01:16]} 30. d5 {[%clk 0:01:05]}  Kf6 {[%clk 0:01:06]} 31. dxe6 {[%clk 0:00:51]}  Kxe6 {[%clk 0:01:05]} 32. b4 {[%clk 0:00:46]}  Nb3 {[%clk 0:00:00]} 33. Rc3 {[%clk 0:00:38]} 1-0


[Site "https://www.chess.com"]